fUST/lending_fUST_20250128
["ID","MTS","AMOUNT","RATE_DAILY","PERIOD"]
[350620600,1738002647325,-7416.86314329,0.00022034,2]
[350620601,1738002647337,-900.0,0.00022034,2]
[350620602,1738002647351,-8429.30685671,0.00022034,2]
[350620603,1738002647360,-4983.25,0.00022034,2]
[350620604,1738002647369,-976.54,0.00022034,2]
[350620605,1738002647378,-500.0,0.00022034,2]
[350620606,1738002647387,-532.65,0.00022034,2]
[350620607,1738002647397,-500.0,0.00022034,2]
[350620608,1738002647405,-500.0,0.00022034,2]
[350620609,1738002647414,-2279.04424978,0.00022038,3]
[350620610,1738002647423,-500.0,0.00022043,2]
[350620611,1738002647433,-500.0,0.00022043,2]
[350620612,1738002647442,-500.0,0.00022043,2]
[350620613,1738002647452,-243.877863,0.00022043,7]
[350620614,1738002647461,-151.0,0.00022043,7]
[350620615,1738002647470,-226.608254,0.00022045,7]
[350620616,1738002647480,-226.608254,0.00022045,7]
[350620617,1738002647489,-507.84897339,0.00022071,2]
[350620618,1738002647499,-2279.04424978,0.00022072,3]
[350620619,1738002647508,-500.0,0.00022084,2]
[350620620,1738002647517,-600.58,0.00022084,2]
[350620621,1738002647526,-617.53,0.00022084,2]
[350620622,1738002647536,-500.0,0.00022084,2]
[350620623,1738002647545,-500.0,0.00022084,2]
[350620624,1738002647554,-524.80983657,0.00022084,2]
[350620639,1738002933466,184.409785,0.00013699,2]
[350620651,1738003652147,-2411.41276696,0.00019737,2]
[350620652,1738003653162,-161.12259059,0.00019737,2]
[350620653,1738003653190,-160.345554,0.00019937,2]
[350620654,1738003653215,-1000.0,0.00021,21]
[350620655,1738003653240,-334.40666321,0.0002111,2]
[350620656,1738003653265,-188.22,0.00021201,2]
[350620657,1738003653291,-300.0,0.00021208,2]
[350620658,1738003653316,-500.0,0.00021209,2]
[350620659,1738003653343,-735.2,0.00021209,2]
[350620660,1738003653369,-500.0,0.00021209,2]
[350620661,1738003653394,-500.0,0.00021209,2]
[350620662,1738003653421,-500.0,0.00021209,2]
[350620663,1738003653446,-1050.71,0.00021209,2]
[350620664,1738003653470,-500.0,0.00021209,2]
[350620665,1738003653494,-195.605,0.0002121,2]
[350620666,1738003653517,-500.0,0.0002121,2]
[350620667,1738003653540,-596.0,0.0002121,2]
[350620668,1738003653564,-500.0,0.0002121,2]
[350620669,1738003653587,-500.0,0.0002121,2]
[350620670,1738003653610,-500.0,0.0002121,2]
[350620671,1738003653634,-500.0,0.0002121,2]
[350620672,1738003653656,-500.0,0.0002121,2]
[350620673,1738003653680,-500.0,0.0002121,2]
[350620674,1738003653703,-89.38612849,0.0002121,2]
[350620718,1738003832265,-192.814693,0.00020636,2]
[350620719,1738003832275,-292.6058303,0.0002111,2]
[350620720,1738003832285,-300.0,0.00021208,2]
[350620721,1738003832295,-214.5794767,0.00021209,2]
[350620722,1738003832371,-281.2305233,0.00021209,2]
[350620723,1738003832381,-617.2494767,0.00021209,2]
[350620734,1738003838014,-32.6205233,0.00021209,2]
[350620735,1738003838023,-1790.97,0.00021209,2]
[350620736,1738003838033,-500.0,0.00021209,2]
[350620737,1738003838043,-500.0,0.00021209,2]
[350620738,1738003838054,-500.0,0.00021209,2]
[350620739,1738003838063,-756.27,0.00021209,2]
[350620740,1738003838072,-500.0,0.00021209,2]
[350620741,1738003838084,-738.23,0.00021209,2]
[350620742,1738003838094,-500.0,0.00021209,2]
[350620743,1738003838103,-500.0,0.00021209,2]
[350620744,1738003838112,-800.25,0.00021209,2]
[350620745,1738003838121,-1360.99,0.00021209,2]
[350620746,1738003838130,-500.0,0.00021209,2]
[350620747,1738003838140,-704.56,0.00021209,2]
[350620748,1738003838149,-500.0,0.00021209,2]
[350620749,1738003838158,-500.0,0.00021209,2]
[350620750,1738003838168,-500.0,0.00021209,2]
[350620751,1738003838295,-500.0,0.00021209,2]
[350620752,1738003838305,-865.32,0.00021209,2]
[350620753,1738003838315,-500.0,0.00021209,2]
[350620754,1738003838324,-500.0,0.00021209,2]
[350620755,1738003838333,-500.0,0.00021209,2]
[350620756,1738003838342,-500.0,0.0002121,2]
[350620757,1738003838352,-500.0,0.0002121,2]
[350620758,1738003838362,-500.0,0.0002121,2]
[350620759,1738003838371,-500.0,0.0002121,2]
[350620760,1738003838380,-500.0,0.0002121,2]
[350620761,1738003838389,-794.22,0.0002121,2]
[350620762,1738003838398,-500.0,0.0002121,2]
[350620763,1738003838408,-500.0,0.0002121,2]
[350620764,1738003838418,-500.0,0.0002121,2]
[350620765,1738003838427,-500.0,0.0002121,2]
[350620766,1738003838435,-500.0,0.0002121,2]
[350620767,1738003838445,-4325.05,0.0002121,2]
[350620768,1738003838454,-500.0,0.0002121,2]
[350620769,1738003838463,-500.0,0.0002121,2]
[350620770,1738003838472,-500.0,0.0002121,2]
[350620771,1738003838481,-500.0,0.0002121,2]
[350620772,1738003838490,-500.0,0.0002121,2]
[350620773,1738003838499,-562.5,0.0002121,2]
[350620774,1738003838509,-500.0,0.0002121,2]
[350620775,1738003838518,-545.83214331,0.0002121,2]
[350620776,1738003838527,-3529.81,0.0002121,2]
[350620777,1738003838537,-500.0,0.0002121,2]
[350620778,1738003838546,-500.0,0.0002121,2]
[350620779,1738003838555,-351.94958297,0.0002121,2]
[350620780,1738003838564,-500.0,0.0002121,2]
[350620781,1738003838574,-11861.87,0.0002121,2]
[350620782,1738003838583,-691.72,0.0002121,2]
[350620783,1738003838592,-500.0,0.0002121,2]
[350620784,1738003838603,-500.0,0.0002121,2]
[350620785,1738003838613,-500.0,0.0002121,2]
[350620786,1738003838622,-500.0,0.0002121,2]
[350620787,1738003838631,-500.0,0.0002121,2]
[350620788,1738003838640,-500.0,0.0002121,2]
[350620789,1738003838650,-541.91,0.0002121,2]
[350620790,1738003838659,-157.45,0.0002121,2]
[350620791,1738003838668,-500.0,0.00021211,2]
[350620792,1738003838678,-500.0,0.00021211,2]
[350620793,1738003838687,-500.0,0.00021211,2]
[350620794,1738003838696,-500.0,0.00021211,2]
[350620795,1738003838705,-500.0,0.00021211,2]
[350620796,1738003838714,-562.48,0.00021211,2]
[350620797,1738003838724,-500.0,0.00021211,2]
[350620798,1738003838734,-500.0,0.00021211,2]
[350620799,1738003838743,-500.0,0.00021211,2]
[350620800,1738003838753,-500.0,0.00021211,2]
[350620801,1738003838763,-500.0,0.00021211,2]
[350620802,1738003838772,-540.94,0.00021211,2]
[350620803,1738003838782,-500.0,0.00021211,2]
[350620804,1738003838792,-500.0,0.00021211,2]
[350620805,1738003838801,-500.0,0.00021211,2]
[350620806,1738003838811,-500.0,0.00021211,2]
[350620807,1738003838821,-500.0,0.00021211,2]
[350620808,1738003838830,-500.0,0.00021211,2]
[350620809,1738003838840,-500.0,0.00021211,2]
[350620810,1738003838850,-500.0,0.00021211,2]
[350620811,1738003838860,-502.43,0.00021211,2]
[350620812,1738003838869,-219.34642532,0.00021211,2]
[350620813,1738003838878,-500.0,0.00021211,2]
[350620814,1738003838888,-683.72,0.00021211,2]
[350620815,1738003838897,-503.75995048,0.00021211,2]
[350620816,1738003838907,-500.0,0.00021211,2]
[350620817,1738003838916,-500.0,0.00021211,2]
[350620818,1738003838925,-500.0,0.00021211,2]
[350620819,1738003838935,-500.0,0.00021211,2]
[350620820,1738003838944,-525.0,0.00021211,2]
[350620821,1738003838954,-153.0,0.00021247,2]
[350620822,1738003838964,-153.0,0.00021247,2]
[350620823,1738003838973,-153.0,0.00021247,2]
[350620824,1738003838982,-153.0,0.00021247,2]
[350620825,1738003838993,-153.0,0.00021247,2]
[350620826,1738003839004,-153.0,0.00021247,2]
[350620827,1738003839013,-153.0,0.00021247,2]
[350620828,1738003839022,-153.0,0.00021247,2]
[350620829,1738003839032,-153.0,0.00021247,2]
[350620830,1738003839041,-153.0,0.00021247,2]
[350620831,1738003839050,-153.0,0.00021247,2]
[350620832,1738003839059,-153.0,0.00021247,2]
[350620833,1738003839069,-153.0,0.00021247,2]
[350620834,1738003839078,-166.3837524,0.00021247,2]
[350620835,1738003839088,-153.0,0.00021249,2]
[350620836,1738003839099,-153.0,0.00021249,2]
[350620837,1738003839108,-153.0,0.00021249,2]
[350620838,1738003839118,-153.0,0.00021249,2]
[350620839,1738003839127,-153.0,0.00021249,2]
[350620840,1738003839136,-153.0,0.00021249,2]
[350620841,1738003839146,-153.0,0.00021249,2]
[350620842,1738003839155,-153.0,0.00021249,2]
[350620843,1738003839165,-153.0,0.00021249,2]
[350620844,1738003839174,-153.0,0.00021249,2]
[350620845,1738003839183,-153.0,0.00021249,2]
[350620846,1738003839192,-153.0,0.00021249,2]
[350620847,1738003839201,-153.0,0.00021249,2]
[350620848,1738003839211,-153.0,0.00021251,2]
[350620849,1738003839220,-153.0,0.00021251,2]
[350620850,1738003839229,-153.0,0.00021251,2]
[350620851,1738003839238,-153.0,0.00021251,2]
[350620852,1738003839248,-153.0,0.00021251,2]
[350620853,1738003839257,-153.0,0.00021251,2]
[350620854,1738003839267,-153.0,0.00021251,2]
[350620855,1738003839276,-153.0,0.00021251,2]
[350620856,1738003839285,-153.0,0.00021251,2]
[350620857,1738003839295,-153.0,0.00021251,2]
[350620858,1738003839304,-153.0,0.00021251,2]
[350620859,1738003839314,-153.0,0.00021251,2]
[350620860,1738003839324,-153.0,0.00021251,2]
[350620861,1738003839333,-153.0,0.00021253,2]
[350620862,1738003839342,-153.0,0.00021253,2]
[350620863,1738003839354,-153.0,0.00021253,2]
[350620864,1738003839363,-153.0,0.00021253,2]
[350620865,1738003839372,-153.0,0.00021253,2]
[350620866,1738003839383,-153.0,0.00021253,2]
[350620867,1738003839392,-153.0,0.00021253,2]
[350620868,1738003839402,-153.0,0.00021253,2]
[350620869,1738003839411,-153.0,0.00021253,2]
[350620870,1738003839421,-153.0,0.00021253,2]
[350620871,1738003839431,-153.0,0.00021253,2]
[350620873,1738003839440,-153.0,0.00021253,2]
[350620874,1738003839450,-153.0,0.00021253,2]
[350620875,1738003839460,-153.0,0.00021265,2]
[350620877,1738003839470,-153.0,0.00021265,2]
[350620879,1738003839480,-153.0,0.00021265,2]
[350620881,1738003839489,-153.0,0.00021265,2]
[350620882,1738003839499,-153.0,0.00021265,2]
[350620883,1738003839508,-153.0,0.00021265,2]
[350620884,1738003839517,-153.0,0.00021265,2]
[350620885,1738003839527,-153.0,0.00021265,2]
[350620886,1738003839537,-153.0,0.00021265,2]
[350620887,1738003839547,-153.0,0.00021265,2]
[350620889,1738003839556,-153.0,0.00021265,2]
[350620890,1738003839565,-153.0,0.00021265,2]
[350620892,1738003839575,-153.0,0.00021265,2]
[350620893,1738003839585,-153.0,0.00021269,2]
[350620895,1738003839595,-153.0,0.00021269,2]
[350620896,1738003839606,-153.0,0.00021269,2]
[350620897,1738003839615,-292.60583029,0.00021322,2]
[350620898,1738003839625,-1050.71,0.00021346,2]
[350620900,1738003839634,-154.3791037,0.00021346,2]
[350620901,1738003839644,-649.87,0.00021346,2]
[350620902,1738003839654,-1790.97,0.00021346,2]
[350620903,1738003839664,-500.0,0.00021346,2]
[350620904,1738003839673,-500.0,0.00021346,2]
[350620906,1738003839683,-500.0,0.00021346,2]
[350620907,1738003839693,-756.27,0.00021346,2]
[350620909,1738003839703,-738.23,0.00021346,2]
[350620910,1738003839713,-500.0,0.00021346,2]
[350620911,1738003839722,-449.3,0.00021346,2]
[350620912,1738003839732,-800.25,0.00021346,2]
[350620913,1738003839741,-1360.99,0.00021346,2]
[350620914,1738003839751,-500.0,0.00021346,2]
[350620915,1738003839760,-704.56,0.00021346,2]
[350620916,1738003839769,-500.0,0.00021346,2]
[350620917,1738003839779,-500.0,0.00021346,2]
[350620918,1738003839788,-500.0,0.00021346,2]
[350620920,1738003839797,-500.0,0.00021346,2]
[350620922,1738003839807,-865.32,0.00021346,2]
[350620924,1738003839816,-500.0,0.00021346,2]
[350620926,1738003839825,-500.0,0.00021346,2]
[350620928,1738003839835,-500.0,0.00021346,2]
[350620930,1738003839845,-500.0,0.00021347,2]
[350620932,1738003839856,-500.0,0.00021347,2]
[350620935,1738003839866,-500.0,0.00021347,2]
[350620937,1738003839876,-500.0,0.00021347,2]
[350620938,1738003839886,-500.0,0.00021347,2]
[350620940,1738003839895,-500.0,0.00021347,2]
[350620942,1738003839905,-500.0,0.00021347,2]
[350620944,1738003839915,-500.0,0.00021347,2]
[350620946,1738003839928,-500.0,0.00021347,2]
[350620948,1738003839938,-794.22,0.00021347,2]
[350620950,1738003839947,-500.0,0.00021347,2]
[350620952,1738003839956,-500.0,0.00021347,2]
[350620954,1738003839966,-500.0,0.00021347,2]
[350620955,1738003839975,-500.0,0.00021347,2]
[350620956,1738003839984,-500.0,0.00021347,2]
[350620957,1738003839996,-4325.05,0.00021347,2]
[350620958,1738003840008,-500.0,0.00021347,2]
[350620959,1738003840017,-500.0,0.00021347,2]
[350620960,1738003840027,-500.0,0.00021347,2]
[350620961,1738003840037,-500.0,0.00021347,2]
[350620962,1738003840047,-500.0,0.00021347,2]
[350620963,1738003840057,-562.5,0.00021347,2]
[350620964,1738003840066,-3529.81,0.00021347,2]
[350620965,1738003840076,-500.0,0.00021347,2]
[350620966,1738003840085,-500.0,0.00021347,2]
[350620967,1738003840097,-500.0,0.00021347,2]
[350620968,1738003840106,-11861.87,0.00021347,2]
[350620969,1738003840116,-691.72,0.00021347,2]
[350620970,1738003840126,-500.0,0.00021347,2]
[350620971,1738003840135,-500.0,0.00021347,2]
[350620972,1738003840145,-500.0,0.00021347,2]
[350620973,1738003840154,-500.0,0.00021347,2]
[350620974,1738003840164,-500.0,0.00021348,2]
[350620975,1738003840174,-500.0,0.00021348,2]
[350620976,1738003840184,-500.0,0.00021348,2]
[350620977,1738003840193,-500.0,0.00021348,2]
[350620978,1738003840203,-500.0,0.00021348,2]
[350620979,1738003840212,-562.48,0.00021348,2]
[350620980,1738003840222,-500.0,0.00021348,2]
[350620981,1738003840231,-500.0,0.00021348,2]
[350620982,1738003840241,-500.0,0.00021348,2]
[350620983,1738003840251,-500.0,0.00021348,2]
[350620984,1738003840261,-500.0,0.00021348,2]
[350620985,1738003840270,-540.94,0.00021348,2]
[350620986,1738003840280,-500.0,0.00021348,2]
[350620987,1738003840290,-590.70853937,0.00021348,2]
[350620988,1738003840299,-500.0,0.00021348,2]
[350620989,1738003840309,-500.0,0.00021348,2]
[350620990,1738003840319,-500.0,0.00021348,2]
[350620991,1738003840329,-500.0,0.00021348,2]
[350620992,1738003840339,-500.0,0.00021348,2]
[350620993,1738003840350,-500.0,0.00021348,2]
[350620994,1738003840359,-683.72,0.00021348,2]
[350620995,1738003840369,-500.0,0.00021348,2]
[350620996,1738003840379,-500.0,0.00021348,2]
[350620997,1738003840389,-500.0,0.00021348,2]
[350620998,1738003840399,-525.0,0.00021348,2]
[350620999,1738003840408,-151.0,0.00021452,2]
[350621000,1738003840418,-1050.71,0.00021483,2]
[350621001,1738003840428,-649.87,0.00021483,2]
[350621002,1738003840438,-1790.97,0.00021483,2]
[350621003,1738003840447,-500.0,0.00021483,2]
[350621004,1738003840458,-500.0,0.00021483,2]
[350621005,1738003840467,-500.0,0.00021483,2]
[350621006,1738003840477,-756.27,0.00021483,2]
[350621007,1738003840486,-738.23,0.00021483,2]
[350621008,1738003840495,-500.0,0.00021483,2]
[350621009,1738003840505,-800.25,0.00021483,2]
[350621010,1738003840515,-1360.99,0.00021483,2]
[350621011,1738003840525,-500.0,0.00021483,2]
[350621012,1738003840535,-704.56,0.00021483,2]
[350621013,1738003840545,-500.0,0.00021483,2]
[350621014,1738003840554,-500.0,0.00021483,2]
[350621015,1738003840564,-611.01189543,0.00021483,2]
[350621016,1738003840573,-500.0,0.00021483,2]
[350621017,1738003840583,-865.32,0.00021483,2]
[350621018,1738003840593,-500.0,0.00021483,2]
[350621019,1738003840603,-500.0,0.00021483,2]
[350621020,1738003840613,-500.0,0.00021483,2]
[350621021,1738003840622,-500.0,0.00021484,2]
[350621022,1738003840632,-500.0,0.00021484,2]
[350621023,1738003840642,-500.0,0.00021484,2]
[350621024,1738003840651,-500.0,0.00021484,2]
[350621025,1738003840660,-500.0,0.00021484,2]
[350621026,1738003840670,-500.0,0.00021484,2]
[350621027,1738003840775,-500.0,0.00021484,2]
[350621028,1738003840786,-190.91065091,0.00021484,2]
[350621029,1738003840795,-500.0,0.00021484,2]
[350621030,1738003840805,-794.22,0.00021484,2]
[350621031,1738003840814,-540.94210851,0.00021484,2]
[350621032,1738003840823,-500.0,0.00021484,2]
[350621033,1738003840832,-500.0,0.00021484,2]
[350621034,1738003840841,-500.0,0.00021484,2]
[350621035,1738003840851,-500.0,0.00021484,2]
[350621036,1738003840859,-4325.05,0.00021484,2]
[350621037,1738003840868,-500.0,0.00021484,2]
[350621038,1738003840878,-500.0,0.00021484,2]
[350621039,1738003840888,-500.0,0.00021484,2]
[350621040,1738003840897,-500.0,0.00021484,2]
[350621041,1738003840907,-500.0,0.00021484,2]
[350621042,1738003840916,-562.5,0.00021484,2]
[350621043,1738003840925,-3529.81,0.00021484,2]
[350621044,1738003840935,-500.0,0.00021484,2]
[350621045,1738003840945,-500.0,0.00021484,2]
[350621046,1738003840954,-500.0,0.00021484,2]
[350621047,1738003840964,-11861.87,0.00021484,2]
[350621048,1738003840974,-691.72,0.00021484,2]
[350621049,1738003840983,-500.0,0.00021484,2]
[350621050,1738003840995,-500.0,0.00021484,2]
[350621051,1738003841006,-500.0,0.00021484,2]
[350621052,1738003841016,-410.20321159,0.00021484,2]
[350621053,1738003841026,-500.0,0.00021484,2]
[350621054,1738003841038,-500.0,0.00021485,2]
[350621055,1738003841047,-500.0,0.00021485,2]
[350621056,1738003841057,-500.0,0.00021485,2]
[350621057,1738003841067,-500.0,0.00021485,2]
[350621058,1738003841079,-500.0,0.00021485,2]
[350621059,1738003841089,-562.48,0.00021485,2]
[350621060,1738003841100,-500.0,0.00021485,2]
[350621061,1738003841109,-500.0,0.00021485,2]
[350621062,1738003841119,-336.66230125,0.00021485,2]
[350621063,1738003841129,-500.0,0.00021485,2]
[350621064,1738003841139,-500.0,0.00021485,2]
[350621065,1738003841149,-540.94,0.00021485,2]
[350621066,1738003841160,-500.0,0.00021485,2]
[350621067,1738003841170,-500.0,0.00021485,2]
[350621068,1738003841179,-500.0,0.00021485,2]
[350621069,1738003841189,-500.0,0.00021485,2]
[350621070,1738003841199,-500.0,0.00021485,2]
[350621071,1738003841208,-500.0,0.00021485,2]
[350621072,1738003841217,-500.0,0.00021485,2]
[350621073,1738003841226,-683.72,0.00021485,2]
[350621074,1738003841236,-500.0,0.00021485,2]
[350621075,1738003841246,-500.0,0.00021485,2]
[350621076,1738003841255,-500.0,0.00021485,2]
[350621077,1738003841264,-525.0,0.00021485,2]
[350621078,1738003841273,-292.60583029,0.00021535,2]
[350621079,1738003841283,-1050.71,0.0002162,2]
[350621080,1738003841292,-649.87,0.0002162,2]
[350621081,1738003841302,-1790.97,0.0002162,2]
[350621082,1738003841311,-500.0,0.0002162,2]
[350621083,1738003841321,-500.0,0.0002162,2]
[350621084,1738003841330,-500.0,0.0002162,2]
[350621085,1738003841340,-756.27,0.0002162,2]
[350621086,1738003841350,-738.23,0.0002162,2]
[350621087,1738003841360,-500.0,0.0002162,2]
[350621088,1738003841369,-800.25,0.0002162,2]
[350621089,1738003841379,-1360.99,0.0002162,2]
[350621090,1738003841389,-500.0,0.0002162,2]
[350621091,1738003841398,-704.56,0.0002162,2]
[350621092,1738003841408,-500.0,0.0002162,2]
[350621093,1738003841417,-500.0,0.0002162,2]
[350621094,1738003841427,-500.0,0.0002162,2]
[350621095,1738003841437,-500.0,0.0002162,2]
[350621096,1738003841446,-500.0,0.0002162,2]
[350621097,1738003841456,-500.0,0.0002162,2]
[350621098,1738003841466,-500.0,0.00021621,2]
[350621099,1738003841475,-500.0,0.00021621,2]
[350621100,1738003841485,-500.0,0.00021621,2]
[350621101,1738003841495,-500.0,0.00021621,2]
[350621102,1738003841504,-500.0,0.00021621,2]
[350621103,1738003841514,-500.0,0.00021621,2]
[350621104,1738003841523,-500.0,0.00021621,2]
[350621105,1738003841533,-500.0,0.00021621,2]
[350621106,1738003841542,-794.22,0.00021621,2]
[350621107,1738003841552,-500.0,0.00021621,2]
[350621108,1738003841561,-500.0,0.00021621,2]
[350621109,1738003841571,-500.0,0.00021621,2]
[350621110,1738003841580,-500.0,0.00021621,2]
[350621111,1738003841590,-4325.05,0.00021621,2]
[350621112,1738003841600,-500.0,0.00021621,2]
[350621113,1738003841609,-500.0,0.00021621,2]
[350621114,1738003841618,-500.0,0.00021621,2]
[350621115,1738003841627,-500.0,0.00021621,2]
[350621116,1738003841637,-500.0,0.00021621,2]
[350621117,1738003841646,-562.5,0.00021621,2]
[350621118,1738003841655,-3529.81,0.00021621,2]
[350621119,1738003841665,-500.0,0.00021621,2]
[350621120,1738003841674,-500.0,0.00021621,2]
[350621121,1738003841684,-500.0,0.00021621,2]
[350621122,1738003841693,-11861.87,0.00021621,2]
[350621123,1738003841703,-691.72,0.00021621,2]
[350621124,1738003841712,-500.0,0.00021621,2]
[350621125,1738003841721,-500.0,0.00021621,2]
[350621126,1738003841730,-500.0,0.00021621,2]
[350621127,1738003841739,-500.0,0.00021621,2]
[350621128,1738003841749,-500.0,0.00021622,2]
[350621129,1738003841758,-500.0,0.00021622,2]
[350621130,1738003841768,-500.0,0.00021622,2]
[350621131,1738003841777,-500.0,0.00021622,2]
[350621132,1738003841786,-500.0,0.00021622,2]
[350621133,1738003841796,-562.48,0.00021622,2]
[350621134,1738003841806,-500.0,0.00021622,2]
[350621135,1738003841815,-500.0,0.00021622,2]
[350621136,1738003841825,-500.0,0.00021622,2]
[350621137,1738003841834,-500.0,0.00021622,2]
[350621138,1738003841844,-540.94,0.00021622,2]
[350621139,1738003841854,-500.0,0.00021622,2]
[350621140,1738003841864,-227.5274508,0.00021622,2]
[350621141,1738003841874,-500.0,0.00021622,2]
[350621142,1738003841887,-500.0,0.00021622,2]
[350621143,1738003841896,-500.0,0.00021622,2]
[350621144,1738003841908,-500.0,0.00021622,2]
[350621145,1738003841918,-500.0,0.00021622,2]
[350621146,1738003841928,-683.72,0.00021622,2]
[350621147,1738003841937,-500.0,0.00021622,2]
[350621148,1738003841947,-500.0,0.00021622,2]
[350621149,1738003841956,-500.0,0.00021622,2]
[350621150,1738003841966,-525.0,0.00021622,2]
[350621151,1738003841975,-500.0,0.00021674,2]
[350621152,1738003841984,-381.02,0.000217,2]
[350621153,1738003841998,-600.0,0.0002174,2]
[350621154,1738003842009,-292.60583029,0.00021747,2]
[350621155,1738003842019,-1050.71,0.00021757,2]
[350621156,1738003842030,-649.87,0.00021757,2]
[350621157,1738003842041,-1790.97,0.00021757,2]
[350621158,1738003842050,-500.0,0.00021757,2]
[350621159,1738003842059,-500.0,0.00021757,2]
[350621160,1738003842069,-500.0,0.00021757,2]
[350621161,1738003842079,-756.27,0.00021757,2]
[350621162,1738003842089,-738.23,0.00021757,2]
[350621163,1738003842098,-500.0,0.00021757,2]
[350621164,1738003842108,-800.25,0.00021757,2]
[350621165,1738003842118,-1360.99,0.00021757,2]
[350621166,1738003842127,-500.0,0.00021757,2]
[350621167,1738003842137,-704.56,0.00021757,2]
[350621168,1738003842146,-500.0,0.00021757,2]
[350621169,1738003842155,-500.0,0.00021757,2]
[350621170,1738003842165,-500.0,0.00021757,2]
[350621171,1738003842175,-500.0,0.00021757,2]
[350621172,1738003842185,-500.0,0.00021757,2]
[350621173,1738003842195,-500.0,0.00021757,2]
[350621174,1738003842204,-500.0,0.00021758,2]
[350621175,1738003842214,-500.0,0.00021758,2]
[350621176,1738003842223,-500.0,0.00021758,2]
[350621177,1738003842232,-500.0,0.00021758,2]
[350621178,1738003842242,-500.0,0.00021758,2]
[350621179,1738003842251,-500.0,0.00021758,2]
[350621180,1738003842260,-588.02680201,0.00021758,2]
[350621182,1738003842270,-500.0,0.00021758,2]
[350621183,1738003842279,-794.22,0.00021758,2]
[350621185,1738003842289,-500.0,0.00021758,2]
[350621187,1738003842298,-500.0,0.00021758,2]
[350621188,1738003842308,-500.0,0.00021758,2]
[350621189,1738003842317,-500.0,0.00021758,2]
[350621190,1738003842327,-4325.05,0.00021758,2]
[350621191,1738003842336,-500.0,0.00021758,2]
[350621192,1738003842347,-500.0,0.00021758,2]
[350621193,1738003842356,-500.0,0.00021758,2]
[350621194,1738003842365,-500.0,0.00021758,2]
[350621195,1738003842375,-500.0,0.00021758,2]
[350621197,1738003842384,-562.5,0.00021758,2]
[350621199,1738003842394,-3529.81,0.00021758,2]
[350621201,1738003842403,-500.0,0.00021758,2]
[350621203,1738003842413,-500.0,0.00021758,2]
[350621205,1738003842423,-500.0,0.00021758,2]
[350621207,1738003842433,-11861.87,0.00021758,2]
[350621209,1738003842442,-691.72,0.00021758,2]
[350621211,1738003842452,-500.0,0.00021758,2]
[350621213,1738003842461,-500.0,0.00021758,2]
[350621215,1738003842471,-500.0,0.00021758,2]
[350621217,1738003842480,-500.0,0.00021759,2]
[350621219,1738003842489,-500.0,0.00021759,2]
[350621221,1738003842499,-500.0,0.00021759,2]